bitfinex/quotes_ETHUSD_20260306
["timestamp","ask_amount","ask_price","bid_price","bid_amount"]
[1772774994826,0.4821466,2066.6,2066.2,0.47649252]
[1772774995021,1.2096579,2066.7,2066.2,0.47649252]
[1772774995022,0.4821466,2066.7,2066.2,0.47649252]
[1772774995644,0.4821466,2066.7,2066.3,0.47539252]
[1772774996454,0.4821466,2066.7,2066.3,1.68528459]
[1772774996749,1.69186198,2066.7,2066.3,0.47539252]
[1772774997114,0.4821466,2066.7,2066.3,1.6852683]
[1772774997457,0.4821466,2066.6,2066.0,0.0011]
[1772774998828,0.4821466,2066.6,2066.0,0.47649252]
[1772774999116,1.20977498,2066.5,2066.0,0.47649252]
[1772774999322,0.4821466,2066.4,2066.0,0.0011]
[1772775001256,0.47404212,2066.2,2066.0,0.0011]
[1772775003158,1.20989207,2066.3,2065.1,0.49420751]
[1772775003159,0.47404212,2066.0,2065.1,0.49420751]
[1772775003338,0.47404212,2065.8,2064.9,0.49420751]
[1772775003921,0.47404212,2065.8,2065.1,0.49530751]
[1772775004136,1.21012633,2065.9,2065.1,0.49530751]
[1772775004339,1.21012633,2065.9,2065.3,0.49420751]
[1772775004955,1.68416845,2065.9,2065.3,0.49420751]
[1772775005352,1.68416845,2065.9,2065.4,1.70462679]
[1772775005542,0.47404212,2065.8,2065.3,0.0011]
[1772775006162,1.21107767,2066.0,2065.4,0.49420751]
[1772775006333,0.001,2066.0,2065.4,0.49420751]
[1772775006657,0.001,2066.0,2065.2,1.21162716]
[1772775006658,1.68389201,2066.4,2065.5,0.49530751]
[1772775006865,1.20984989,2066.4,2065.5,0.49420751]
[1772775007074,0.47404212,2066.3,2065.7,0.49420751]
[1772775007360,0.47404212,2066.2,2065.7,0.49420751]
[1772775007544,0.47404212,2066.2,2065.8,0.0011]
[1772775007725,0.47404212,2066.2,2065.5,1.7045176]
[1772775007929,0.47404212,2066.2,2065.6,0.0011]
[1772775008150,0.47404212,2066.2,2065.5,0.49420751]
[1772775008459,0.47404212,2066.2,2065.6,0.0011]
[1772775008642,0.47404212,2066.2,2065.4,0.0011]
[1772775008959,0.47404212,2066.1,2065.4,0.0011]
[1772775009361,0.47404212,2066.0,2065.4,0.0011]
[1772775009737,0.47404212,2065.8,2065.4,0.0011]
[1772775011363,1.68414397,2066.0,2065.5,0.49530751]
[1772775011562,1.68414397,2066.0,2065.2,0.0011]
[1772775011563,0.47404212,2065.9,2065.3,0.49530751]
[1772775011762,0.47404212,2065.9,2065.4,0.49420751]
[1772775011959,1.68421117,2065.9,2065.4,0.49420751]
[1772775012275,1.68421117,2065.9,2065.2,4.84320548]
[1772775012276,0.47404212,2065.8,2065.2,0.0011]
[1772775012763,0.47404212,2065.8,2065.3,0.0011]
[1772775012960,0.47404212,2065.8,2065.3,0.49530751]
[1772775013437,0.47404212,2065.8,2065.3,0.0011]
[1772775013864,1.2102435,2065.7,2065.3,0.0011]
[1772775014062,1.68428562,2065.7,2065.4,0.0011]
[1772775014269,0.47404212,2065.6,2065.2,0.0011]
[1772775014570,0.47404212,2065.6,2065.3,0.0011]
[1772775015236,0.47404212,2066.0,2065.3,0.49530751]
[1772775015459,0.47404212,2066.0,2065.4,0.0011]
[1772775016264,1.68416845,2065.9,2065.4,0.0011]
[1772775016769,0.001,2065.6,2065.4,0.0011]
[1772775018771,0.001,2065.6,2065.2,0.0011]
[1772775018772,0.001,2065.6,2065.2,0.49530751]
[1772775018972,0.001,2065.6,2065.3,0.49420751]
[1772775019575,0.001,2065.6,2065.4,0.0011]
[1772775019975,0.47404212,2066.1,2065.5,0.49420751]
[1772775020551,1.68410988,2066.0,2065.5,0.49420751]
[1772775021351,0.47404212,2065.9,2065.6,0.0011]
[1772775021565,0.47404212,2065.9,2065.3,1.7057775]
[1772775021869,0.47404212,2065.9,2065.4,0.0011]
[1772775022649,1.21018491,2065.8,2065.5,0.0011]
[1772775022850,1.68422703,2065.8,2065.5,0.0011]
[1772775023272,0.47404212,2065.7,2065.5,0.0011]
[1772775023455,0.47404212,2065.7,2065.2,0.49530751]
[1772775023456,0.47404212,2065.7,2065.2,0.0011]
[1772775024761,1.21026659,2065.7,2065.2,0.49530751]
[1772775024951,1.68430871,2065.7,2065.2,0.49530751]
[1772775025151,0.47404212,2065.6,2065.2,0.0011]
[1772775026575,1.21026659,2065.7,2065.2,0.0011]
[1772775026889,0.47404212,2065.7,2065.2,0.0011]
[1772775028476,0.47404212,2065.7,2065.4,0.0011]
[1772775028673,0.001,2065.4,2065.2,0.0011]
[1772775028874,0.47404212,2065.2,2065.0,0.0011]
[1772775029085,0.47404212,2065.2,2065.1,0.0011]
[1772775030370,1.21047789,2065.3,2065.1,0.0011]
[1772775030775,1.21047789,2065.3,2065.0,0.0011]
[1772775030776,1.21059512,2065.1,2065.0,0.0011]
[1772775030965,1.66577301,2065.1,2065.0,0.0011]
[1772775031366,1.21059512,2065.1,2065.0,0.0011]
[1772775032190,1.66577301,2065.1,2065.0,0.0011]
[1772775032911,1.21051187,2065.3,2065.0,0.0011]
[1772775033208,0.001,2065.4,2065.0,0.47423363]
[1772775033376,1.21142874,2065.4,2065.0,0.47423363]
[1772775034584,1.21142859,2065.4,2065.0,0.47423363]
[1772775035091,0.45517789,2065.3,2064.9,0.0011]
[1772775036975,1.2105365,2065.2,2064.8,0.0011]
[1772775037180,0.45517789,2065.1,2064.8,0.0011]
[1772775037810,1.66571439,2065.2,2064.8,0.0011]
[1772775037984,1.66662516,2065.4,2064.8,0.16427359]
[1772775038184,0.45517789,2065.3,2064.8,0.0011]
[1772775039213,1.66567252,2065.3,2064.8,1.3750446]
[1772775039718,1.21146453,2065.4,2064.9,0.16317359]
[1772775040012,1.21144505,2065.4,2064.9,0.16317359]
[1772775040195,1.66662294,2065.4,2064.9,0.16317359]
[1772775040584,1.66662294,2065.4,2065.0,0.0011]
[1772775040997,0.001,2065.2,2065.0,0.0011]
[1772775041519,0.001,2065.2,2065.0,0.16427359]
[1772775041716,4.84120836,2065.8,2065.1,0.16317359]
[1772775041717,1.66537048,2065.8,2065.1,0.16317359]
[1772775041917,1.342,2065.9,2065.1,0.16317359]
[1772775041918,2.55217021,2065.9,2065.1,0.16317359]
[1772775042107,4.84001747,2066.3,2065.0,0.7841]
[1772775042108,0.49999999,2066.3,2065.0,0.7841]
[1772775042324,0.49999999,2066.2,2065.0,0.7841]
[1772775043420,0.49999999,2066.0,2065.1,1.21059512]
[1772775043630,0.49999999,2066.0,2065.0,1.21171047]
[1772775043803,0.49999999,2066.0,2065.0,1.99471047]
[1772775045131,0.49999999,2066.0,2065.0,1.21171047]
[1772775045351,1.21012633,2065.9,2065.0,0.0011]
[1772775045626,0.49999999,2065.8,2065.0,0.0011]
[1772775047631,3.04510555,2066.0,2065.0,0.0011]
[1772775051932,0.49999999,2065.9,2065.0,0.0011]
[1772775052442,0.49999999,2065.9,2065.2,0.0011]
[1772775052633,0.001,2065.8,2065.2,0.0011]
[1772775054053,1.70989206,2066.3,2065.2,0.0011]
[1772775054544,0.49999999,2066.3,2065.2,0.0011]
[1772775056137,1.70995062,2066.2,2065.2,0.0011]
[1772775056342,1.70995062,2066.2,2065.3,0.783]
[1772775056875,0.49999999,2066.1,2065.3,0.783]
[1772775058639,0.49999999,2066.0,2065.4,1.21041928]
[1772775059159,0.49999999,2066.0,2065.3,1.21043315]
[1772775060574,0.49999999,2065.8,2065.2,0.0011]
[1772775062960,1.71018614,2065.8,2065.2,0.0011]
[1772775063367,0.49999999,2065.7,2065.2,0.0011]
[1772775064648,1.71030208,2065.6,2065.2,0.0011]
[1772775064850,0.49999999,2065.5,2065.0,0.0011]
[1772775066564,1.70973238,2065.7,2065.0,0.0022]
[1772775066871,0.49944999,2065.6,2065.0,0.0022]
[1772775068151,0.49944999,2065.6,2065.0,0.0011]
[1772775068851,0.49944999,2065.6,2065.0,0.0022]
[1772775070346,0.49944999,2065.6,2065.1,0.0011]
[1772775070580,1.7106824,2065.8,2065.1,0.0011]
[1772775071648,0.49944999,2065.7,2065.1,0.0011]
[1772775071872,0.49944999,2065.7,2065.0,0.0011]
[1772775074812,0.49944999,2065.7,2065.1,0.0011]
[1772775075358,1.70969964,2065.7,2065.1,0.0011]
[1772775076083,0.001,2065.5,2065.3,0.0011]
[1772775079270,0.49944999,2065.4,2065.3,0.0011]
[1772775084295,0.001,2065.5,2065.3,0.0011]
[1772775086063,0.47200873,2065.7,2065.3,0.0011]
[1772775087787,0.47200873,2065.7,2065.4,0.0011]
[1772775087994,0.001,2065.5,2065.4,0.0011]
[1772775092497,0.47425067,2065.8,2065.4,0.0011]
[1772775093783,0.47425067,2065.8,2065.4,0.49494366]
[1772775093981,0.47425067,2065.8,2065.4,0.0011]
[1772775094484,1.68445829,2065.8,2065.4,0.0011]
[1772775094978,0.47325067,2065.7,2065.4,0.0011]
[1772775095487,0.001,2065.8,2065.4,0.49494366]
[1772775096087,0.47425067,2065.8,2065.4,0.49494366]
[1772775096504,0.47425067,2065.8,2065.5,1.21036068]
[1772775096812,0.47425067,2065.8,2065.4,1.70531915]
[1772775097335,0.47425067,2065.8,2065.4,1.21147549]
[1772775098386,0.47425067,2065.8,2065.4,1.70531915]
[1772775098588,0.001,2065.8,2065.4,1.21147549]
[1772775098881,0.001,2065.8,2065.5,0.49384366]
[1772775099086,0.47325067,2066.2,2065.5,0.49384366]
[1772775099895,0.47325067,2066.2,2065.6,0.49494366]
[1772775100600,0.47325067,2066.1,2065.7,1.2102435]
[1772775102096,0.47325067,2066.1,2065.6,0.0011]
[1772775102599,0.47325067,2065.9,2065.6,0.0011]
[1772775105018,0.47325067,2066.1,2065.6,0.49494366]
[1772775107826,0.47325067,2066.5,2065.8,0.49384366]
[1772775108793,0.47325067,2066.5,2065.6,1.21135824]
[1772775108794,0.47325067,2066.5,2065.7,0.49384366]
[1772775109796,1.20983352,2066.4,2065.8,1.21018491]
[1772775110007,0.47325067,2066.3,2065.8,1.21018491]
[1772775110412,0.47325067,2066.3,2065.8,1.70402857]
[1772775110612,1.20983352,2066.4,2065.9,0.49384366]
[1772775110823,1.68308419,2066.4,2065.9,0.49384366]
[1772775111724,0.47325067,2066.4,2065.9,0.49384366]
[1772775112023,0.47325067,2066.6,2066.1,0.49384366]
[1772775112196,1.68297751,2066.6,2066.1,0.49384366]
[1772775112402,1.68279152,2066.9,2066.1,0.49384366]
[1772775112615,0.47325067,2066.8,2066.1,0.49384366]
[1772775113331,0.001,2066.3,2066.1,0.49384366]
[1772775113627,0.47325067,2066.8,2066.1,0.49384366]
[1772775113998,0.47325067,2066.8,2066.3,0.49384366]
[1772775115807,1.68287385,2066.8,2066.3,0.49384366]
[1772775116012,0.47325067,2066.6,2066.2,1.20995063]
[1772775116727,1.20968062,2066.7,2066.2,1.20995063]
[1772775116728,1.20968062,2066.7,2066.2,1.70379429]
[1772775117033,1.20964203,2066.8,2066.3,0.49384366]
[1772775117239,0.47325067,2066.7,2066.3,0.49384366]
[1772775118136,0.47325067,2066.7,2066.4,1.20983352]
[1772775118312,0.47325067,2066.9,2066.4,1.20983352]
[1772775120051,0.47325067,2066.9,2066.4,1.67675196]
[1772775120253,0.46316525,2067.1,2066.5,0.46691844]
[1772775120608,0.46316525,2067.4,2066.5,0.46691844]
[1772775121417,0.46316525,2067.4,2066.7,0.46691844]
[1772775122534,1.67247207,2067.3,2066.8,1.67651782]
[1772775123109,0.46316525,2067.2,2066.2,1.24991844]
[1772775124628,0.46316525,2067.0,2066.3,1.20989207]
[1772775124869,0.46316525,2067.0,2066.3,1.67681051]
[1772775125065,0.46316525,2067.0,2066.2,1.9929382]
[1772775125463,0.46416525,2067.0,2066.2,2.45985664]
[1772775125641,0.46416525,2067.0,2066.2,1.67685664]
[1772775126230,0.46416525,2067.0,2066.3,0.46691844]
[1772775126867,0.46316525,2066.9,2066.4,1.67675196]
[1772775127030,0.001,2067.0,2066.5,0.46691844]
[1772775127429,1.21048367,2067.0,2066.5,0.46691844]
[1772775127855,1.67364892,2067.0,2066.5,0.46691844]
[1772775128052,0.001,2067.0,2066.5,0.46691844]
[1772775128357,0.46416525,2067.6,2066.7,0.46691844]
[1772775128558,1.6732994,2067.6,2066.7,0.46691844]
[1772775128762,0.46416525,2067.6,2066.7,0.46691844]
[1772775128958,0.46416525,2067.6,2066.9,0.46691844]
[1772775129460,0.001,2067.6,2066.9,0.46691844]
[1772775129831,0.001,2067.9,2066.9,0.46691844]
[1772775130955,0.001,2067.9,2067.0,1.20948234]
[1772775131168,0.46416525,2067.9,2067.2,0.46691844]
[1772775131366,0.46416525,2067.9,2066.9,4.83792936]
[1772775131367,0.46316525,2067.7,2066.9,1.20953513]
[1772775131976,0.46316525,2067.7,2067.0,0.46691844]
[1772775132265,0.46416525,2067.9,2067.0,0.46691844]
[1772775133472,1.67315614,2067.9,2067.2,0.46691844]
[1772775133775,0.46316525,2067.8,2067.2,0.46691844]
[1772775133986,0.46316525,2067.8,2067.1,1.20942383]
[1772775136090,0.46316525,2067.8,2067.2,0.46691844]
[1772775137560,0.001,2067.6,2067.2,0.46691844]
[1772775138275,0.001,2067.6,2067.3,1.20930682]
[1772775138476,0.001,2067.6,2067.1,4.8375962]
[1772775138851,0.001,2067.6,2067.1,5.30451464]
[1772775139081,0.001,2067.6,2067.2,0.46691844]
[1772775141391,0.001,2067.6,2066.8,4.83777337]
[1772775141567,0.46416525,2067.6,2067.0,0.46691844]
[1772775142862,0.001,2067.6,2067.0,0.46691844]
[1772775143556,0.001,2067.6,2067.2,0.46691844]
[1772775143955,0.46416525,2067.9,2067.2,0.46691844]
[1772775145686,0.001,2067.9,2067.4,0.46691844]
[1772775146267,0.46416525,2068.1,2067.4,0.46691844]
[1772775146465,0.46416525,2068.1,2067.5,0.46691844]
[1772775146466,0.001,2068.1,2067.5,0.46691844]
[1772775146677,1.67182197,2068.5,2067.5,0.46691844]
[1772775147169,0.46316525,2068.5,2067.5,0.46691844]
[1772775147367,0.46316525,2068.7,2067.5,0.46691844]
[1772775147582,1.67165374,2068.7,2067.7,0.46691844]
[1772775147775,0.46316525,2068.6,2067.7,0.46691844]
[1772775147964,0.46316525,2068.6,2067.7,1.25091844]
[1772775148361,0.46316525,2068.6,2067.7,0.46691844]
[1772775150196,0.46766514,2068.4,2067.8,1.20901441]
[1772775150499,0.001,2067.9,2067.8,1.20901441]
[1772775150666,0.46766514,2068.4,2067.8,1.20901441]
[1772775150865,0.46766514,2068.4,2067.8,1.67979684]
[1772775151160,0.46766514,2068.4,2067.9,0.47078243]
[1772775151364,1.67625866,2068.6,2067.9,0.47078243]
[1772775152167,1.67625866,2068.6,2068.0,1.20889748]
[1772775152696,0.46766514,2068.6,2068.1,0.47078243]
[1772775152884,0.46766514,2068.6,2068.0,1.20889748]
[1772775152885,1.20855301,2068.6,2068.0,1.20889748]
[1772775153069,0.46766514,2068.5,2067.8,1.20897584]
[1772775153397,0.46766514,2068.5,2067.8,1.99297584]
[1772775153583,0.46766514,2068.5,2067.8,1.20897584]
[1772775153994,0.46766514,2068.5,2067.8,1.67975827]
[1772775154495,0.46766514,2068.5,2067.9,0.47078243]
[1772775154698,1.67627985,2068.5,2067.9,0.47078243]
[1772775155002,0.46766514,2069.0,2067.9,0.47078243]
[1772775155296,0.46766514,2069.0,2067.8,1.99397584]
[1772775155896,0.46766514,2069.0,2067.9,0.39499342]
[1772775157299,0.46766514,2068.8,2068.0,1.20889748]
[1772775159501,0.46766514,2068.6,2068.0,1.20889748]
[1772775159703,0.46766514,2068.6,2067.7,1.60403055]
[1772775159899,0.46766514,2068.6,2067.7,1.20903713]
[1772775160072,0.46766514,2068.6,2067.8,0.39499342]
[1772775160876,0.46766514,2068.6,2067.7,1.20903713]
[1772775161313,0.46766514,2068.3,2067.4,0.5461366]
[1772775161473,0.46766514,2068.1,2067.4,1.75538126]
[1772775161919,0.46766514,2068.1,2067.4,1.75538461]
[1772775162217,0.46766514,2068.1,2067.4,0.5461366]
[1772775162379,0.46766514,2068.1,2067.4,1.75537899]
[1772775162585,0.46766514,2068.1,2067.6,0.0011]
[1772775162988,0.46866514,2068.3,2067.6,0.0011]
[1772775163204,0.46866514,2068.3,2067.6,0.39609342]
[1772775163405,0.001,2068.3,2067.6,0.39609342]
[1772775163610,0.001,2068.3,2067.7,1.6040663]
[1772775164102,0.001,2068.3,2067.8,0.39499342]
[1772775165517,0.001,2068.3,2067.9,1.20895594]
[1772775165724,0.001,2068.3,2068.0,0.39499342]
[1772775166404,0.46766514,2068.8,2068.1,0.39499342]
[1772775166983,0.46766514,2068.8,2068.0,0.788]
[1772775168020,0.46766514,2068.6,2067.9,2.39194936]
[1772775168318,0.46766514,2068.6,2068.0,0.39499342]
[1772775170097,1.67621271,2068.6,2068.1,1.20883903]
[1772775170932,0.46766514,2068.5,2067.8,0.39499342]
[1772775171122,0.46766514,2068.5,2067.8,1.60396167]
[1772775171320,0.46766514,2068.5,2067.8,1.20896825]
[1772775172100,0.46766514,2068.4,2067.8,0.39499342]
[1772775174232,0.46766514,2068.4,2067.9,1.20895594]
[1772775174827,0.46766514,2068.4,2067.9,1.60394936]
[1772775175616,0.46766514,2068.6,2068.0,0.39499342]
[1772775176206,0.46766514,2069.2,2068.1,1.60383245]
[1772775176411,0.46766514,2069.1,2068.1,1.60383245]
[1772775176736,0.46766514,2069.1,2068.1,2.39483245]
[1772775177230,0.001,2068.4,2068.1,2.39483245]
[1772775177439,0.46766514,2068.7,2068.2,0.39499342]
[1772775178335,0.46766514,2068.9,2068.3,1.20872213]
[1772775178734,0.46766514,2068.9,2068.3,1.59642235]
[1772775179334,0.46766514,2068.9,2068.4,0.38770022]
[1772775179712,1.67595287,2069.1,2068.4,0.38770022]
[1772775179915,0.49526942,2069.0,2068.4,0.38770022]
[1772775180129,0.49526942,2069.0,2068.3,1.20872213]
[1772775180441,0.49526942,2068.8,2068.1,2.00179711]
[1772775180738,0.49526942,2068.8,2068.1,0.793]
[1772775181237,0.49526942,2068.8,2068.1,1.18070022]
[1772775182532,0.49526942,2068.6,2068.2,1.20878058]
[1772775183048,0.49526942,2068.6,2068.1,2.38949257]
[1772775184936,1.70370044,2068.8,2068.2,0.38770022]
[1772775185148,0.49526942,2068.7,2068.2,0.38770022]
[1772775186639,0.49526942,2068.7,2068.1,2.00179235]
[1772775186838,0.49526942,2068.7,2068.0,5.2242544]
[1772775186839,0.49526942,2068.5,2068.0,0.0011]
[1772775187426,5.62583348,2069.2,2068.0,0.0011]
[1772775187427,0.49526942,2069.4,2068.1,0.38770022]
[1772775187708,0.49526942,2069.4,2068.0,0.0011]
[1772775187709,0.49526942,2069.0,2068.0,0.0011]
[1772775188828,0.49526942,2068.8,2068.0,1.20999748]
[1772775189030,0.49526942,2068.8,2068.1,0.38770022]
[1772775190121,0.49526942,2068.8,2068.3,0.0011]
[1772775191033,0.49526942,2068.8,2068.3,1.20982213]
[1772775191279,0.49526942,2068.7,2068.3,1.20982213]
[1772775193667,1.70368182,2068.9,2068.3,1.59752235]
[1772775193963,0.49526942,2068.8,2068.3,1.59752235]
[1772775194987,0.49526942,2068.8,2068.3,0.0011]
[1772775195469,1.70373635,2068.8,2068.3,0.38880022]
[1772775196168,0.49526942,2068.7,2068.3,0.38880022]
[1772775197342,0.49526942,2068.6,2068.3,0.0011]
[1772775198763,0.49526942,2068.6,2068.3,1.2098098]
[1772775199268,0.49526942,2069.0,2068.3,1.2098098]
[1772775199467,0.49526942,2068.8,2068.3,0.0011]
[1772775199867,0.49526942,2068.8,2068.0,0.0011]
[1772775199868,0.49526942,2068.6,2068.0,0.0011]
[1772775200068,0.49526942,2068.5,2067.8,0.0011]
[1772775201545,0.49526942,2068.3,2067.8,0.0011]
[1772775203343,1.2086637,2068.4,2068.0,0.0011]
[1772775203549,1.2086637,2068.4,2068.0,0.45288697]
[1772775203873,1.70493312,2068.4,2068.0,0.45288697]
[1772775204173,0.49626942,2068.4,2068.0,0.45288697]
[1772775205077,0.49626942,2068.4,2068.0,0.0011]
[1772775205745,0.001,2068.4,2068.0,0.45288697]
[1772775207875,0.49626942,2068.4,2068.1,1.20883903]
[1772775208081,0.49626942,2068.4,2068.0,1.20995039]
[1772775208464,0.49626942,2068.4,2068.0,0.0011]
[1772775211170,1.67808381,2068.3,2068.0,0.0011]
[1772775211582,1.67906571,2068.4,2068.0,0.0011]
[1772775211758,0.47036168,2068.4,2068.0,0.0011]
[1772775212359,0.47036168,2068.4,2068.0,0.47232831]
[1772775213774,0.001,2068.4,2068.1,1.68006734]
[1772775214483,0.001,2068.4,2068.2,0.47122831]
[1772775215858,0.001,2068.4,2068.3,1.20982213]
[1772775216776,0.001,2068.4,2068.3,0.0011]
[1772775225395,0.47036168,2068.4,2068.3,0.0011]
[1772775225574,0.47036168,2068.4,2068.0,0.0011]
[1772775227501,0.46936168,2068.2,2068.0,0.0011]
[1772775228795,0.47036168,2068.2,2068.0,0.0011]
[1772775230499,0.001,2068.2,2068.0,0.47232831]
[1772775230695,0.46936168,2068.7,2068.1,0.47122831]
[1772775230880,0.46936168,2068.7,2068.0,0.0011]
[1772775231489,0.46936168,2068.5,2068.0,1.20999748]
[1772775232384,0.46936168,2068.5,2068.0,0.0011]
[1772775234107,0.46936168,2068.3,2068.0,0.0011]
[1772775234803,1.2086637,2068.4,2067.8,4.83715571]
[1772775234804,0.46936168,2068.1,2067.8,0.0011]
[1772775234995,0.46936168,2068.1,2067.7,0.0011]
[1772775236100,1.20889748,2068.0,2067.7,0.0011]
[1772775236278,0.46936168,2067.9,2067.7,0.0011]
[1772775236693,1.32,2068.1,2067.7,0.0011]
[1772775236881,1.78936168,2068.1,2067.7,0.0011]
[1772775237083,0.46936168,2068.0,2067.7,0.0011]
[1772775238201,1.32,2068.1,2067.7,0.0011]
[1772775238402,1.78936168,2068.1,2067.7,0.0011]
[1772775238703,0.46936168,2068.0,2067.7,0.0011]
[1772775240223,1.20894868,2068.0,2067.7,0.0011]
[1772775240521,0.46191433,2067.9,2067.7,0.0011]
[1772775242282,0.001,2068.1,2067.7,0.47421095]
[1772775242906,0.001,2068.1,2067.7,0.0011]
[1772775243110,0.46291433,2068.1,2067.7,0.0011]
[1772775244799,1.67179972,2068.1,2067.7,0.0011]
[1772775245919,0.001,2068.1,2067.7,0.47421095]
[1772775246999,0.46291433,2068.1,2067.7,1.68325733]
[1772775247548,0.46291433,2068.1,2067.8,0.47311095]
[1772775247549,0.001,2068.1,2067.8,0.47311095]
[1772775250322,0.001,2068.1,2067.8,1.68212143]
[1772775250824,0.001,2068.1,2067.9,0.47311095]
[1772775251032,0.001,2068.1,2067.7,0.0011]
[1772775251033,0.46291433,2068.1,2067.7,0.0011]
[1772775251191,0.46291433,2068.1,2067.6,0.0011]
[1772775251830,0.46191433,2067.9,2067.6,0.0011]
[1772775253422,2.53284417,2068.1,2067.8,0.47421095]
[1772775253615,0.001,2067.9,2067.8,0.47421095]
[1772775253817,0.001,2067.9,2067.8,1.68322536]
[1772775254013,1.324,2068.1,2067.8,1.68322536]
[1772775254393,1.324,2068.1,2067.8,0.47421095]
[1772775254727,2.99475407,2068.1,2067.8,0.0011]
[1772775255300,1.78591433,2068.1,2067.8,0.0011]
[1772775255500,1.78591433,2068.1,2067.8,1.21010633]
[1772775255937,1.20883154,2068.2,2067.9,0.47311095]
[1772775255938,1.323,2068.2,2067.9,0.47311095]
[1772775256499,1.78491433,2068.6,2067.9,0.47311095]
[1772775256799,0.46191433,2068.5,2067.8,0.47421095]
[1772775257704,0.46191433,2068.5,2067.8,0.0011]
[1772775257904,0.46191433,2068.3,2067.8,0.0011]
[1772775258202,0.46191433,2068.2,2067.8,0.0011]
[1772775261517,1.6707454,2068.2,2067.8,0.0011]
[1772775261931,1.6707454,2068.2,2067.8,0.47421095]
[1772775262208,1.67070031,2068.2,2067.8,0.47421095]
[1772775263708,0.46191433,2068.2,2067.8,1.68319607]
[1772775264031,1.67069998,2068.2,2067.8,1.68319607]
[1772775264215,1.67069998,2068.2,2067.8,0.47421095]
[1772775264622,1.67069998,2068.2,2067.8,1.68321786]
[1772775265234,0.46191433,2068.1,2067.5,0.0011]
[1772775265433,1.20878565,2068.2,2067.0,0.31039156]
[1772775265434,0.46191433,2067.5,2067.0,0.31039156]
[1772775265602,0.46191433,2067.3,2066.8,0.0011]
[1772775265929,1.20936532,2067.2,2066.8,0.0011]
[1772775266134,0.46191433,2067.1,2066.8,0.0011]
[1772775269934,0.46337445,2067.0,2066.8,0.0011]
[1772775270817,0.46337445,2067.0,2066.4,0.0011]
[1772775272123,0.46337445,2066.8,2066.4,0.0011]
[1772775272436,0.46337445,2066.7,2066.4,0.0011]
[1772775273351,0.46337445,2066.7,2066.1,1.67629817]
[1772775273352,0.46337445,2066.7,2066.0,0.0011]
[1772775274231,0.46337445,2066.5,2066.0,0.0011]
[1772775277053,0.46337445,2066.3,2066.2,0.0011]
[1772775277253,0.46337445,2066.3,2066.0,0.0011]
[1772775277254,0.46337445,2066.2,2066.0,0.0011]
[1772775278310,0.46337445,2066.2,2065.6,0.0011]
[1772775279138,0.46337445,2066.1,2065.6,0.0011]
[1772775280849,0.46337445,2066.3,2065.6,0.46633333]
[1772775281055,1.326,2066.2,2065.7,1.67547683]
[1772775281217,1.326,2066.2,2065.7,0.46523333]
[1772775281218,0.46337445,2066.1,2065.7,0.46523333]
[1772775281438,0.46337445,2066.1,2065.6,0.46633333]
[1772775281767,0.46337445,2066.1,2065.6,0.0011]
[1772775283154,0.46337445,2066.0,2065.6,0.0011]
[1772775285644,1.67349503,2066.0,2065.6,0.0011]
[1772775286143,1.67349503,2066.0,2065.3,0.0011]
[1772775286144,0.46337445,2065.9,2065.3,0.0011]
[1772775286348,0.46337445,2065.9,2065.3,1.63591183]
[1772775286567,0.46337445,2065.8,2065.3,1.63591183]
[1772775286766,0.46337445,2065.8,2065.3,0.0011]
[1772775287354,1.98559233,2065.7,2064.4,1.21100541]
[1772775287570,0.46337445,2065.6,2064.4,1.21100541]
[1772775287754,0.46337445,2065.4,2064.4,1.21100541]
[1772775287958,0.46337445,2065.2,2064.4,1.21100541]
[1772775289259,0.46337445,2065.2,2064.4,1.63534172]
[1772775289862,0.46337445,2065.0,2064.4,1.63534172]
[1772775290652,0.46337445,2065.0,2064.4,1.21100541]
[1772775290854,0.46337445,2065.0,2064.4,1.63534172]
[1772775291054,1.67393722,2065.2,2064.5,0.42433631]
[1772775291260,1.325,2065.3,2064.5,0.42433631]
[1772775291973,1.325,2065.3,2064.7,0.43162951]
[1772775292559,0.46337445,2065.2,2064.6,1.2108883]
[1772775292959,0.46337445,2065.2,2064.6,1.64251781]
[1772775293285,0.46337445,2065.4,2064.7,0.43162951]
[1772775293576,1.67379949,2065.4,2064.7,0.43162951]
[1772775293783,0.46337445,2065.4,2064.7,0.43162951]
[1772775293985,0.46337445,2065.4,2064.2,0.17290908]
[1772775294186,0.46337445,2064.8,2062.7,2.50924906]
[1772775294484,0.46337445,2064.3,2063.5,0.83870825]
[1772775294685,0.46337445,2064.0,2063.5,0.83870825]
[1772775294885,0.46337445,2063.8,2063.5,0.83870825]
[1772775295083,0.46337445,2063.8,2062.8,4.84771479]
[1772775295084,1.322,2063.7,2062.8,4.84771479]
[1772775295283,1.322,2063.7,2062.8,5.31594812]
[1772775295284,1.78537445,2063.7,2062.8,5.31594812]
[1772775295486,0.46337445,2063.6,2062.9,0.003]
[1772775295692,0.46337445,2063.6,2062.7,1.21199358]
[1772775295989,1.67487228,2063.6,2062.9,1.21188617]
[1772775297186,1.67485832,2063.6,2062.9,1.21188617]
[1772775297683,1.21139591,2063.8,2063.0,0.003]
[1772775297864,4.31098176,2063.9,2062.9,1.6771195]
[1772775298069,1.21129937,2063.9,2063.2,0.46523333]
[1772775298268,0.46337445,2063.8,2063.1,1.21176869]
[1772775298877,3.37575437,2064.0,2063.1,1.67700202]
[1772775299187,3.37675437,2064.0,2063.2,0.46823333]
[1772775299362,0.46337445,2063.9,2063.2,0.003]
[1772775300166,2.0577187,2064.0,2063.3,0.45480105]
[1772775300366,2.0577187,2064.0,2063.3,0.45180105]
[1772775300588,0.4977704,2063.9,2063.4,0.003]
[1772775300795,0.84647003,2064.0,2063.1,0.45480105]
[1772775300992,1.21103461,2064.4,2063.3,0.45180105]
[1772775301286,0.4977704,2064.3,2063.3,0.45180105]
[1772775301487,0.4977704,2064.3,2063.1,0.0011]
[1772775301488,0.4977704,2064.3,2063.4,0.003]
[1772775301675,0.4977704,2064.3,2063.1,0.0011]
[1772775301871,0.4977704,2064.3,2063.2,0.003]
[1772775302072,0.4977704,2064.1,2063.2,0.45480105]
[1772775302963,1.21110984,2064.3,2063.2,0.45480105]
[1772775303670,2.52798621,2064.5,2063.2,0.45480105]
[1772775304087,2.52798621,2064.5,2063.3,1.21165123]
[1772775304288,2.52798621,2064.5,2063.4,0.45180105]
[1772775305583,3.02575661,2064.5,2063.4,0.45180105]
[1772775306089,1.8147704,2064.5,2063.6,0.45180105]
[1772775306282,3.02572067,2064.5,2063.6,0.45180105]
[1772775306479,1.317,2064.5,2063.8,0.45180105]
[1772775306688,1.317,2064.5,2063.6,0.003]
[1772775306689,0.4977704,2064.4,2063.6,0.003]